Cogmind - Beta 14 @@@ ROGUE MODE // 2025.03.31 @ 14:47:14 Player: golanco Result: Destroyed by G-34 Mercenary with Small Laser Performance ------------- Evolutions (0) 0 Regions Visited (1) 200 Robots Destroyed (30) 150 Value Destroyed (522) 522 Prototype IDs (0) 0 Alien Tech Used (0) 0 Bonus (0) 0 TOTAL SCORE: 872 Bonus ------- None Cogmind --------- Core Integrity 0/250 Matter 270/300 Energy 250/250 System Corruption 0% Temperature Cool (6) Movement Core (300) Ox5 Location -10/Materials Parts ------- > --- POWER (1) -------- Ion Engine > --- PROPULSION (2) --- (None) > --- UTILITY (2) ------ Medium Storage Unit Transport Network Coupler > --- WEAPON (2) ------- Grenade Launcher > --- INVENTORY (10) --- Flight Unit Flight Unit Flight Unit Transport Network Coupler ECM Suite Light Armor Plating Hacking Suite Peak State ------------ > --- POWER ------------ Light Ion Engine > --- PROPULSION ------- Light Treads Light Treads > --- UTILITY ---------- Medium Storage Unit Sensor Array > --- WEAPON ----------- Assault Rifle Light Assault Rifle > --- INVENTORY -------- Light Ion Engine Flight Unit Flight Unit Flight Unit Transport Network Coupler Transport Network Coupler ECM Suite Hacking Suite Grenade Launcher [Rating: 8] Favorites ----------- Power Light Ion Engine Engine Light Ion Engine Propulsion Light Treads Treads Light Treads Utility Transport Network Coupler Device Sensor Array Storage Medium Storage Unit Processor Transport Network Coupler Weapon Assault Rifle Energy Gun EM Pulse Gun Ballistic Gun Assault Rifle Launcher Grenade Launcher Build | -11 -10 ------- Run | Yrd Mat Slots Evolved . | . . Power . | . . Propulsion . | . . Utility . | . . Weapon . | . . Parts Attached 16 | 7 9 Power 3 | 1 2 Engine 3 | 1 2 Core . | . . Reactor . | . . Propulsion 3 | 2 1 Treads 3 | 2 1 Leg . | . . Wheel . | . . Hover . | . . Flight . | . . Utility 6 | 2 4 Device 2 | 1 1 Storage 2 | 1 1 Processor 2 | . 2 Hackware . | . . Protection . | . . Artifact . | . . Weapon 4 | 2 2 Energy Gun 1 | 1 . Energy Cannon . | . . Ballistic Gun 2 | 1 1 Ballistic Cannon . | . . Launcher 1 | . 1 Special Weapon . | . . Impact Weapon . | . . Slashing Weapon . | . . Piercing Weapon . | . . Special Melee Weapon . | . . Unidentified Prototypes . | . . Parts Lost 8 | . 8 Power 2 | . 2 Propulsion 2 | . 2 Utility 1 | . 1 Weapon 3 | . 3 Highest Loss Streak 3 | . 3 To Critical Strikes . | . . Average Slot Usage (%) 89 | . 89 Engine 13 | . 13 Treads 18 | . 18 Device 4 | . 4 Storage 14 | . 14 Processor 9 | . 9 Energy Gun 7 | . 7 Ballistic Gun 19 | . 19 Peak Build Rating 8 | 7 8 Average Rating 6 | 5 6 On Entrance 3 | . 7 Naked Turns . | . . Heaviest Build 18 | 13 18 Greatest Support 40 | 40 40 Greatest Overweight (x) 5 | 1 5 Average Overweight (x) 1 | . 1 Largest Inventory Capacity 10 | 8 10 Average Capacity 8 | 7 9 Most Carried 10 | 3 10 Average Carried 7 | 1 7 Final Capacity 10 | 8 10 Final Carried 7 | 3 7 Class Distribution -------------------- 100% | Mutant Dominant Class ---------------- Mutant | -10/Materials Resources | -11 -10 ----------- Run | Yrd Mat Matter Collected 579 | 288 291 Remotely . | . . Salvage Created 900 | 187 713 Parts 68 | 12 56 Haulers Intercepted 2 | . 2 Recyclers Shooed . | . . Parts Field Recycled . | . . Retrieved Matter . | . . Parts Self-Destructed . | . . Prevented . | . . Kills | -11 -10 ------- Run | Yrd Mat Combat Hostiles Destroyed 16 | . 16 Guns 14 | . 14 AOE 2 | . 2 Classes Destroyed 9 | 3 6 Worker 2 | 1 1 Builder 1 | . 1 Tunneler 4 | 3 1 Hauler 2 | . 2 Recycler 1 | 1 . Operator 1 | . 1 Watcher 3 | . 3 Swarmer 6 | . 6 Grunt 10 | . 10 Best Kill Streak 4 | 4 4 Combat Bots Only 3 | . 3 Max Kills in Single Turn 2 | 1 2 Gunslinging . | . . Exploded 1 | . 1 Melee . | . . Uniques/NPCs Destroyed . | . . Combat | -11 -10 -------- Run | Yrd Mat Hostile Shots Fired 103 | . 103 Missed 24 | . 24 Damage Taken 978 | . 978 Core 258 | . 258 Absorbed by Shields . | . . Core Remaining (%) 100 | 100 . Volleys Fired 78 | 6 72 Largest 2 | 2 2 Hottest 60 | 60 60 Shots Fired 151 | 12 139 Gun 149 | 12 137 Cannon . | . . Launcher 2 | . 2 Special . | . . Kinetic 104 | 6 98 Thermal . | . . Explosive 2 | . 2 Electromagnetic 45 | 6 39 Robot Hit Streak 11 | 2 11 Robot Miss Streak 5 | 1 5 Penetration Max . | . . Secondary Targets 2 | . 2 Max Gunslinging Chain 1 | . 1 Shots Hit Robots 101 | 6 95 Core Hits 43 | 5 38 Critical Kills . | . . Critical Parts Destroyed . | . . Critical Strikes 1 | 1 . Corrupt 1 | 1 . Melee Attacks . | . . Impact . | . . Slashing . | . . Piercing . | . . Sneak Attacks . | . . Combat Hostiles . | . . Follow-up Attacks . | . . Damage Inflicted 1390 | 79 1311 Guns 1161 | 79 1082 Cannons . | . . Explosions 215 | . 215 Melee . | . . Ramming 14 | . 14 Kinetic 828 | 40 788 Thermal 161 | . 161 Explosive 54 | . 54 Electromagnetic 333 | 39 294 Impact . | . . Slashing . | . . Piercing . | . . Highest Corruption . | . . Average Corruption . | . . Corruption Purged . | . . Corruption Blocked . | . . Overload Shots . | . . Overflow Damage 35 | . 35 Projectiles . | . . Explosions 35 | . 35 Melee . | . . Knockbacks . | . . Impact . | . . Kinetic . | . . Secondary . | . . Self-Inflicted Damage 126 | . 126 Shots 5 | . 5 Rammed 4 | . 4 Targets Rammed 4 | . 4 Kicked . | . . Crushed . | . . Highest Temperature 54 | 20 54 Average Temperature 15 | 15 15 Received Heat Transfer 381 | . 381 Siege Activations . | . . Robots Corrupted . | . . Combat Hostiles . | . . Parts Fried . | . . Impact Corruptions . | . . Robots Melted . | . . Combat Hostiles . | . . Parts Melted 1 | . 1 Heat Transferred 100 | . 100 Parts Sabotaged . | . . Parts Stolen . | . . Parts Stripped . | . . Power Chain Reactions 4 | . 4 Alert | -11 -10 ------- Run | Yrd Mat Peak Influence 202 | 25 202 Initial 16 | . 16 Average 39 | 7 41 Maximum Alert Level 1 | . 1 Low Security (%) 95 | 100 95 Level 1 4 | . 4 Level 2 . | . . Level 3 . | . . Level 4 . | . . Level 5 . | . . High Security . | . . Max Security . | . . Squads Dispatched 5 | . 5 Investigation 3 | . 3 Extermination . | . . Reinforcement 2 | . 2 Assault . | . . Garrison . | . . Intercept . | . . Searches Triggered . | . . Construction Impeded . | . . Haulers Reinforced . | . . Active Scanning Responses . | . . Cargo Convoy Interrupts . | . . Stealth | -11 -10 --------- Run | Yrd Mat Distress Signals 1 | . 1 Communications Jammed . | . . Distress Signals . | . . Times Spotted 24 | . 24 Peak Tracking Total 3 | . 3 Tactical Retreats 1 | . 1 Traps | -11 -10 ------- Run | Yrd Mat Traps Triggered 1 | . 1 Indirectly . | . . Trap Hack Attempts . | . . Triggered . | . . Disarmed . | . . Reprogrammed . | . . Reused . | . . Traps Extracted . | . . Installed . | . . Triggered . | . . Machines | -11 -10 ---------- Run | Yrd Mat Machines Disabled . | . . Max in Single Turn . | . . Machines Repaired . | . . Machines Dismantled . | . . Machines Sabotaged . | . . Overloaded Fab Kills . | . . Hacking | -11 -10 --------- Run | Yrd Mat Machines Accessed 3 | . 3 Terminals 2 | . 2 Fabricators . | . . Repair Stations . | . . Recycling Units 1 | . 1 Scanalyzers . | . . Garrison Access . | . . Total Hacks 5 | . 5 Successful . | . . Failed 5 | . 5 Catastrophic 4 | . 4 Database Lockouts . | . . Manual 1 | . 1 Terminals 3 | . 3 Fabricators . | . . Repair Stations . | . . Recycling Units 2 | . 2 Scanalyzers . | . . Garrison Access . | . . Terminal Hacks . | . . Fabricator Hacks . | . . Repair Station Hacks . | . . Recycling Unit Hacks . | . . Scanalyzer . | . . Garrison Access Hacks . | . . Unauthorized Hacks . | . . Terminals . | . . Fabricators . | . . Repair Stations . | . . Recycling Units . | . . Scanalyzers . | . . Garrison Access . | . . Data Cores Recovered . | . . Used . | . . Hacking Detections 3 | . 3 Full Trace Events 1 | . 1 Feedback Events . | . . Feedback Blocked . | . . Robot Schematics Acquired . | . . Robots Built . | . . Authchips . | . . Time . | . . Total Robot Build Rating . | . . Part Schematics Acquired . | . . Parts Built . | . . Authchips . | . . Time . | . . Total Part Build Rating . | . . Parts Repaired . | . . Time . | . . Parts Recycled . | . . Recycled Matter . | . . Retrieved Matter . | . . Retrieved Components . | . . Parts Scanalyzed . | . . Part Schematics Acquired . | . . Parts Damaged . | . . Bothacking | -11 -10 ------------ Run | Yrd Mat Used RIF Installer . | . . Robots Hacked . | . . Non-combat . | . . Combat . | . . Robot Hacks Applied . | . . Relay Couplers Released . | . . Fabnet Peak Effective % . | . . Robots Rewired . | . . Allies Hacked . | . . Hacks Repelled . | . . Allies | -11 -10 -------- Run | Yrd Mat Total Allies . | . . Largest Group . | . . Highest-Rated Group . | . . Highest-Rated Ally . | . . Total Orders . | . . Ally Attacks . | . . Total Damage . | . . Kills . | . . Allies Corrupted . | . . Allies Melted . | . . Intel | -11 -10 ------- Run | Yrd Mat Robot Analysis Total . | . . Derelict Logs Recovered . | . . Drone Launches . | . . Drone Recoveries . | . . Exploration | -11 -10 ------------- Run | Yrd Mat Turns Passed 1849 | 112 1737 Spaces Moved 799 | 54 745 Core 183 | 5 178 Treads 616 | 49 567 Legs . | . . Wheels . | . . Hover . | . . Flight . | . . Fastest Speed 50 | 50 160 Average Speed 190 | 151 193 Slowest Speed 300 | 160 300 Overloaded Moves . | . . Propulsion Burnouts . | . . Robots Hopped . | . . Cave-ins Triggered . | . . Exploration Rate (%) 43 | 5 81 Regions Visited 1 Branch Regions . Pre-discovered Areas . | . . Known Exits Taken . | . . Unknown Exits Taken 1 | 1 . Scrap Searched . | . . Spaces Dug . | . . Terrain Destroyed 34 | . 34 Melee . | . . Projectile . | . . AOE 34 | . 34 Terrain Rammed . | . . Walls Destroyed . | . . Machines Disabled . | . . Actions | -11 -10 --------- Run | Yrd Mat Total 983 | 69 914 Wait 59 | . 59 Move 798 | 53 745 Hop . | . . Pick Up 19 | 3 16 Fast Attach 8 | 7 1 Attach 5 | . 5 Detach . | . . Swap 3 | . 3 Drop 9 | . 9 Fire 78 | 6 72 Melee . | . . Ram . | . . Kick . | . . Crush 4 | . 4 Escape Stasis . | . . Rewire . | . . Trap . | . . Miscellaneous . | . . Route ------- -11/Scrapyard -10/Materials (discovered 4 exits: [*Mat x2] / [*Min x2]) History --------- Turn | Location | Event 7 | -11/Scrapyard | Discovered new exit (range 15) 113 | -11/Scrapyard | Entered Materials 306 | -10/Materials | Build established: Mutant 367 | -10/Materials | Discovered new exit (range 11) 746 | -10/Materials | Discovered new exit (range 16) 894 | -10/Materials | Discovered new exit (range 15) 1097 | -10/Materials | Discovered new exit (range 15) 1183 | -10/Materials | Core integrity fell below 50% 1275 | -10/Materials | Core integrity fell below 20% 1315 | -10/Materials | Lost 3 parts (1p2n) 1850 | -10/Materials | Destroyed by G-34 Mercenary with Small Laser Last Messages --------------- Connecting with Recycling Unit... ALERT: Suspicious activity at Recycling Unit M002. Dispatching Investigation squad. G-34 Mercenary destroyed. Switching to secondary target: G-34 Mercenary. G-34 Mercenary destroyed. K-01 Serf collects debris. Acquired 20 matter. K-01 Serf collects debris. Acquired 8 matter. R-06 Scavenger collects Heat Sink. O-16 Technician: "IFF HANDSHAKE FAILED. SECURING TERMINAL." ALERT: Hostiles spotted, dispatching reinforcements to Terminal M005. A-02 Transporter destroyed. K-01 Serf collects debris. Lgt. Assault Rifle destroyed. Assault Rifle destroyed. G-34 Mercenary destroyed. Map ----- +----------------------------------------------------+ | ? ??????????# #?# # ] # # | | ###+###?????????# #?# """ # """ + + """ | | #?????????# #?# """ # """"" # # """" | | ! %% ########### ### """ # """"" # # """" | | ## """ # = """"" # # """" | | ###+############ "# """ # """ !# # """ | | % #??????# + # ! # # | | #??????# "" ############# ####+# | | #??????# ## #??????????## #### # | | #?????####+######+#+############ ### # | | #?????# ##! % | | #?????# """ +!!* | | #?????# """ ##%! | | #?????# """ ##!######+####### ### # | | #?????# ##u#?# #???## ##?# # | | #########?????# """ ## #?# #????# ####+# | | ??????????????# """ ## #?# = ###### ## | | ??????????????# """ ## #?#[ = + % ## | | ??????????????# ## #?# ###### ## | | ??????????????########### #?# #????### ## | | ????????????????????????# #?#########?????# ## | | ????????????????????????# #??? #?????# ## | | ????????????????????????# #??? """ #?????# ## | | ??????????????????????### ###??""" ??????# ## | | #?#######?????????????# #??""" ??????# ## | | #?# #?????????????# @ #??? ???????# ###### | | ### #???????????### %! #??? ???????# #### | | #???????????# #####+######### | | ### #???????????# % | | #?# #???????????+ k % | | ##### ###???????????# ## | | ## #?????????????# ################# ### | | ## #?????????????## ##???????????????# #?# | | #??????????????# ?????????????????# %%#?# | | ####??????????????# g ?????????????????# %*#?# | | #?????????????????# ?????????????????# =#?# | | #########??????????# ?????????????????# [#?# | | ## #??????????# ?????????????????# #?# | | ## #??????????#^^ ?????????????????# #?# | | ## #??????????+ ^????????????????## ### | | ## " #??????????# ?????????????????# ## | | # """#??????????# ?????????????????# ## | | # """#???????????? ?????????????????# ## | | + """#??????????????????????????????# ## | | # "" #??????????????????????????????# ## | | # """#????????????????????????######## ### | | # ""#????????????????????????# !# #?# | | # """#????????????????????????# """ # #?#* | | # " #????????????????????????# "Y" + #?#% | | # #????????????????????????# " " # #?#% | +----------------------------------------------------+ Best States ------------- Heat Dissipation 25 Energy Generation 10 Energy Capacity 250 Matter Stores 300 Matter Capacity 300 Sight Range 16 Robot Scan Range 14 Terrain Scan Density 10 Evasion (%) 40 Recoil Reduction 2 Item Schematics ----------------- None Robot Schematics ------------------ None Fabricated ------------ Nothing Alien Tech Used ----------------- None Achievements -------------- None Challenges ------------ None Game ------ Seed ParticleDisposableRouter Manual? 0 Play Time 00:08:13 Cumulative 29.9 hours Start 2025.03.31 @ 14:39:18 End 2025.03.31 @ 14:47:14 Sessions 1 Manual Loads 0 Difficulty Rogue Special Mode None Game No. 80 Rogue 80 Adventurer 0 Explorer 0 Win Type - Total 0 Types 0/0/0/0/0/0/0/0/0 Lore% 16 Gallery% 23 Achievement% 25 Wizard Run 0 Options --------- Layout 1 ASCII 0 Keyboard 0 Movement Mouse Keybinds 0 Fullscreen 1 Font 36/Smallcaps Map View 50x40 Zoom Use 0% Tactical HUD 0 Map Filters NONE Filters NONE Steam 1 RUN: 4211666a-78b5-4589-a610-1bcffb8d7105